bitfinex-derivatives/quotes_SOLF0:USTF0_20250516
["timestamp","ask_amount","ask_price","bid_price","bid_amount"]
[1747399522996,5.7852,172.79,172.75,5.7863]
[1747399523501,122.5,172.8,172.71,61.28]
[1747399524205,122.5,172.8,172.74,5.7865]
[1747399524806,5.7857,172.78,172.74,5.7865]
[1747399525002,5.7857,172.78,172.75,5.7864]
[1747399525202,122.5,172.8,172.71,61.28]
[1747399525401,5.7851,172.79,172.71,61.28]
[1747399526205,122.5,172.8,172.71,61.28]
[1747399526509,122.5,172.8,172.77,5.7854]
[1747399526712,122.5,172.8,172.71,68.05816157]
[1747399527003,122.5,172.8,172.78,5.7852]
[1747399528808,128.2848,172.8,172.77,5.7857]
[1747399529106,122.5,172.8,172.71,61.28]
[1747399530206,5.7853,172.79,172.71,61.28]
[1747399530507,122.5,172.8,172.71,61.28]
[1747399530708,61.28,172.8,172.72,61.22]
[1747399531803,5.7854,172.79,172.71,61.2]
[1747399532006,61.2,172.78,172.66,6.77816157]
[1747399532509,5.7865,172.75,172.71,5.7876]
[1747399532907,5.7868,172.74,172.71,5.7876]
[1747399533816,61.2,172.76,172.66,6.77816157]
[1747399534221,5.7877,172.72,172.68,5.7885]
[1747399534519,5.7877,172.72,172.66,6.77816157]
[1747399534912,5.7878,172.71,172.66,6.77816157]
[1747399535121,61.2,172.74,172.66,6.77816157]
[1747399535616,1.9613,172.78,172.66,6.77816157]
[1747399535817,1.9613,172.78,172.65,61.2]
[1747399535818,61.22,172.78,172.71,6.77816157]
[1747399536117,61.22,172.78,172.77,5.7858]
[1747399536622,66.9846,172.81,172.78,5.7853]
[1747399537824,66.9846,172.81,172.79,5.785]
[1747399538722,5.7849,172.8,172.72,5.6138]
[1747399538926,61.2,172.81,172.72,1.9547]
[1747399539138,5.7861,172.76,172.73,5.7868]
[1747399539422,61.2,172.77,172.72,1.9547]
[1747399540124,61.2,172.77,172.74,5.7868]
[1747399540726,61.2,172.77,172.72,1.9547]
[1747399541621,61.2,172.77,172.76,5.7861]
[1747399541817,61.2,172.77,172.72,1.9547]
[1747399542022,66.986,172.77,172.74,5.7867]
[1747399542928,66.986,172.77,172.75,5.7864]
[1747399543119,66.986,172.77,172.72,1.9547]
[1747399543325,61.2,172.77,172.72,1.9547]
[1747399543518,61.2,172.77,172.75,5.7862]
[1747399544423,61.2,172.77,172.74,5.7866]
[1747399544627,66.986,172.77,172.74,5.7866]
[1747399544821,61.2,172.77,172.68,65.1349]
[1747399545130,5.7867,172.75,172.68,126.3149]
[1747399546127,5.7867,172.75,172.72,5.7872]
[1747399546526,5.7862,172.76,172.68,126.3149]
[1747399547129,61.2,172.77,172.68,126.3149]
[1747399547529,61.2,172.77,172.74,5.7867]
[1747399547932,5.7864,172.76,172.68,126.3149]
[1747399548130,5.7864,172.76,172.73,5.787]
[1747399548429,61.2,172.77,172.68,126.3149]
[1747399548634,66.9859,172.77,172.75,5.7864]
[1747399548927,61.22,172.78,172.68,126.3149]
[1747399549325,61.16,172.81,172.69,11.5769]
[1747399549526,61.16,172.81,172.7,1.8983]
[1747399549823,61.16,172.81,172.79,5.785]
[1747399550634,61.16,172.81,172.73,61.22]
[1747399551133,61.16,172.81,172.8,5.7848]
[1747399552328,61.22,172.82,172.8,5.7848]
[1747399552535,61.22,172.82,172.81,5.7844]
[1747399552722,61.22,172.82,172.73,61.22]
[1747399553636,67.0041,172.82,172.79,5.7849]
[1747399554036,61.22,172.82,172.73,61.22]
[1747399554239,61.22,172.82,172.81,5.7844]
[1747399555239,61.22,172.82,172.8,5.7847]
[1747399555438,61.22,172.82,172.73,61.22]
[1747399555737,61.22,172.82,172.8,5.7847]
[1747399555937,61.22,172.82,172.73,61.22]
[1747399556238,67.0044,172.82,172.73,61.22]
[1747399556532,67.0044,172.82,172.7,1.8983]
[1747399556533,61.22,172.82,172.7,1.8983]
[1747399556740,5.786,172.77,172.7,1.8983]
[1747399557038,5.786,172.77,172.74,5.7866]
[1747399557336,5.7862,172.76,172.74,5.7866]
[1747399558032,5.7862,172.76,172.73,5.787]
[1747399558934,5.7866,172.75,172.72,5.7874]
[1747399559133,122.36,172.78,172.7,1.8983]
[1747399559540,5.7868,172.75,172.71,5.7876]
[1747399559839,122.36,172.78,172.7,1.8983]
[1747399560343,5.7866,172.75,172.72,5.7873]
[1747399560638,122.36,172.78,172.72,5.7873]
[1747399560837,122.36,172.78,172.7,1.8983]
[1747399561233,128.1455,172.78,172.7,1.8983]
[1747399561441,122.36,172.78,172.7,1.8983]
[1747399562039,122.36,172.78,172.75,5.7862]
[1747399562835,122.36,172.78,172.76,5.7861]
[1747399563140,122.36,172.78,172.7,63.0183]
[1747399563337,61.12,172.82,172.79,5.785]
[1747399563529,61.12,172.82,172.74,6.78458879]
[1747399563734,61.12,172.82,172.75,3.7151]
[1747399564035,128.0225,172.87,172.77,6.78458879]
[1747399564235,128.0225,172.87,172.78,1.8931]
[1747399564441,61.12,172.87,172.85,5.783]
[1747399564741,61.12,172.87,172.78,63.0131]
[1747399564941,61.12,172.87,172.78,68.7984]
[1747399565240,61.12,172.86,172.78,63.0131]
[1747399565441,61.12,172.86,172.8,5.7845]
[1747399565642,5.7836,172.84,172.78,63.0131]
[1747399566334,5.7838,172.83,172.8,5.7845]
[1747399566534,61.12,172.86,172.78,63.0131]
[1747399566940,61.12,172.86,172.81,5.7841]
[1747399567341,5.7838,172.83,172.81,5.7841]
[1747399567543,5.7838,172.83,172.8,5.7846]
[1747399567843,5.7835,172.84,172.78,63.0131]
[1747399568042,5.7835,172.84,172.81,5.7841]
[1747399569042,5.7838,172.83,172.81,5.7841]
[1747399569241,122.24,172.87,172.78,63.0131]
[1747399570440,5.7837,172.84,172.78,63.0131]
[1747399570744,122.24,172.87,172.78,63.0131]
[1747399571141,122.24,172.87,172.78,1.8931]
[1747399571442,5.7839,172.83,172.8,5.7847]
[1747399571736,122.24,172.87,172.78,1.8931]
[1747399571942,122.24,172.87,172.79,5.7851]
[1747399572639,122.24,172.87,172.8,5.7846]
[1747399572841,122.24,172.87,172.78,1.8931]
[1747399573941,5.784,172.83,172.8,5.7846]
[1747399574143,122.24,172.87,172.8,5.7846]
[1747399574339,122.24,172.87,172.78,1.8931]
[1747399574545,5.7845,172.81,172.78,7.6784]
[1747399574846,122.24,172.87,172.78,1.8931]
[1747399575240,5.7842,172.82,172.79,5.7849]
[1747399575441,122.24,172.87,172.78,1.8931]
[1747399575638,5.7832,172.85,172.82,5.7839]
[1747399576541,5.7828,172.86,172.78,1.8931]
[1747399576736,5.7828,172.86,172.83,5.7836]
[1747399576941,122.2,172.87,172.83,5.7836]
[1747399577441,5.7833,172.85,172.82,5.784]
[1747399577951,5.7835,172.84,172.81,5.7844]
[1747399578843,5.7838,172.83,172.81,5.7844]
[1747399579447,5.7841,172.82,172.8,5.7846]
[1747399579851,122.2,172.87,172.8,5.7846]
[1747399580053,5.7839,172.83,172.8,5.7846]
[1747399580250,122.2,172.87,172.82,5.784]
[1747399580551,122.2,172.87,172.78,1.8931]
[1747399580552,5.7833,172.85,172.78,1.8931]
[1747399581052,499.84,172.89,172.79,67.84458879]
[1747399581350,122.16,172.9,172.79,67.84458879]
[1747399581551,122.16,172.9,172.84,5.7832]
[1747399581753,5.7826,172.87,172.84,5.7832]
[1747399581940,122.16,172.9,172.84,5.7832]
[1747399582145,122.16,172.9,172.83,5.7835]
[1747399582346,122.16,172.9,172.79,67.84458879]
[1747399582652,122.16,172.9,172.83,5.7835]
[1747399582848,5.7828,172.86,172.83,5.7835]
[1747399583251,122.16,172.9,172.86,5.7826]
[1747399583456,5.7819,172.89,172.86,5.7826]
[1747399583752,61.1,172.9,172.85,5.7829]
[1747399584256,5.7823,172.88,172.85,5.7829]
[1747399584856,5.7824,172.87,172.85,5.7829]
[1747399585060,61.1,172.9,172.85,5.7829]
[1747399585353,5.7819,172.89,172.86,5.7827]
[1747399585557,5.7819,172.89,172.81,61.1]
[1747399586059,5.7819,172.89,172.86,5.7825]
[1747399586357,61.1,172.9,172.81,61.1]
[1747399586557,61.1,172.9,172.84,5.7831]
[1747399586859,5.7825,172.87,172.81,61.1]
[1747399587655,5.7822,172.88,172.85,5.7829]
[1747399588257,5.7822,172.88,172.86,5.7827]
[1747399589359,61.1,172.9,172.85,5.783]
[1747399589663,61.1,172.9,172.81,61.1]
[1747399589850,5.7833,172.85,172.81,61.1]
[1747399590050,61.1,172.9,172.81,61.1]
[1747399590451,61.1,172.9,172.84,5.7834]
[1747399591058,5.7818,172.89,172.81,61.1]
[1747399591754,136.05225747,172.93,172.82,67.80458879]
[1747399591959,136.05225747,172.93,172.85,6.78458879]
[1747399592149,136.05225747,172.93,172.91,5.781]
[1747399592353,141.83275747,172.93,172.91,5.781]
[1747399593159,136.05225747,172.93,172.86,123.8518]
[1747399593361,122.04,172.94,172.86,123.8518]
[1747399593556,562.7881,172.97,172.86,123.8518]
[1747399593863,5.7803,172.94,172.91,5.7809]
[1747399594265,623.8081,172.97,172.89,5.7816]
[1747399594761,623.8081,172.97,172.86,123.8518]
[1747399595656,5.7804,172.93,172.86,123.8518]
[1747399596261,5.7804,172.93,172.9,5.7811]
[1747399596560,5.7804,172.93,172.86,123.8518]
[1747399597457,5.7808,172.92,172.89,5.7814]
[1747399597957,61.0,172.96,172.86,123.8518]
[1747399598459,5.7805,172.93,172.86,123.8518]
[1747399599563,5.7805,172.93,172.9,5.7811]
[1747399600264,5.7805,172.93,172.91,5.781]
[1747399600860,5.7805,172.93,172.9,5.7812]
[1747399602364,61.0,172.96,172.86,62.8318]
[1747399603064,5.781,172.92,172.89,5.7816]
[1747399603357,5.7804,172.94,172.86,62.8318]
[1747399603662,61.02,172.97,172.87,60.96]
[1747399603858,121.98,172.97,172.87,60.96]
[1747399604361,5.7798,172.95,172.92,5.7806]
[1747399604664,121.98,172.97,172.91,5.7808]
[1747399605165,5.7802,172.94,172.91,5.7808]
[1747399605358,5.7802,172.94,172.92,5.7806]
[1747399605751,5.7802,172.94,172.91,5.781]
[1747399606864,5.7804,172.93,172.91,5.781]
[1747399607163,121.98,172.97,172.87,60.96]
[1747399607466,5.7813,172.91,172.86,62.8318]
[1747399607666,5.7813,172.91,172.88,5.7818]
[1747399608767,5.7813,172.91,172.89,5.7817]
[1747399609965,121.98,172.97,172.86,62.8318]
[1747399610667,121.98,172.97,172.87,6.78458879]
[1747399610961,5.7799,172.95,172.92,5.7805]
[1747399613769,121.94,172.97,172.87,6.78458879]
[1747399613964,121.94,172.97,172.88,60.92]
[1747399614364,121.94,172.97,172.89,3.9229]
[1747399615568,5.7795,172.96,172.89,3.9229]
[1747399615770,61.02,172.97,172.89,3.9229]
[1747399616571,66.7992,172.97,172.94,5.7798]
[1747399617072,61.02,172.97,172.94,5.7798]
[1747399618274,61.02,172.97,172.93,5.7802]
[1747399618275,5.7794,172.96,172.93,5.7802]
[1747399618463,61.02,172.97,172.89,3.9229]
[1747399619073,5.7802,172.94,172.91,5.781]
[1747399619274,61.02,172.97,172.89,3.9229]
[1747399619673,66.7992,172.97,172.94,5.7797]
[1747399620976,61.02,172.97,172.95,5.7796]
[1747399622071,60.86,173.0,172.97,5.7789]
[1747399622369,60.86,173.0,172.92,67.66458879]
[1747399622574,123.5405,173.03,172.99,5.7783]
[1747399622774,121.74,173.03,172.99,5.7783]
[1747399623171,121.74,173.03,172.94,60.86]
[1747399623575,5.778,173.01,172.98,5.7785]
[1747399625076,60.86,173.03,172.94,60.86]
[1747399625677,5.7768,173.04,172.95,6.78458879]
[1747399625977,5.7768,173.04,172.96,123.5712]
[1747399626176,5.7768,173.04,173.01,5.7774]
[1747399626368,5.7768,173.04,172.96,123.5712]
[1747399626569,5.7765,173.05,172.96,125.5047]
[1747399626969,121.72,173.06,172.96,125.5047]
[1747399627574,5.7769,173.04,173.01,5.7774]
[1747399627980,5.7769,173.04,172.96,125.5047]
[1747399628178,60.86,173.06,172.96,125.5047]
[1747399628381,60.86,173.06,172.98,6.78458879]
[1747399628579,5.776,173.06,173.03,5.7768]
[1747399628780,5.776,173.06,173.0,60.86]
[1747399628976,60.84,173.08,173.0,60.86]
[1747399629280,60.84,173.08,173.01,1.7958]
[1747399629470,60.84,173.08,173.06,5.776]
[1747399629778,60.86,173.09,173.01,1.7958]
[1747399629981,66.6352,173.09,173.05,5.7761]
[1747399630590,5.7748,173.1,173.01,8.58038879]
[1747399630786,60.82,173.11,173.01,8.58038879]
[1747399630988,60.86,173.12,173.01,8.58038879]
[1747399631387,121.68,173.12,173.01,8.58038879]
[1747399631594,60.84,173.15,173.07,6.78458879]
[1747399631790,5.7731,173.15,173.12,5.7738]
[1747399632189,5.7727,173.16,173.12,5.7738]
[1747399632391,60.82,173.17,173.13,5.7736]
[1747399632587,60.82,173.17,173.09,1.9628]
[1747399632796,5.773,173.15,173.1,5.7746]
[1747399633092,60.82,173.17,173.08,3.9258]
[1747399633292,6.78458879,173.16,173.03,121.64]
[1747399633596,8.32068879,173.16,173.05,5.7763]
[1747399633994,5.7749,173.1,173.06,5.776]
[1747399634393,121.64,173.12,173.03,121.64]
[1747399635001,121.64,173.12,173.02,6.78458879]
[1747399635195,121.64,173.12,173.02,121.62]
[1747399635601,121.64,173.12,173.04,5.7767]
[1747399636096,5.7752,173.09,173.02,60.84]
[1747399636397,121.64,173.12,173.02,67.62458879]
[1747399636793,5.7752,173.09,173.05,5.7761]
[1747399636993,5.7752,173.09,173.02,67.62458879]
[1747399637195,5.7745,173.11,173.07,5.7755]
[1747399637397,121.64,173.12,173.07,5.7755]
[1747399637596,121.64,173.12,173.02,67.62458879]
[1747399637898,121.64,173.12,173.03,60.78]
[1747399638103,5.7749,173.1,173.03,60.78]
[1747399639490,5.7751,173.09,173.03,60.78]
[1747399639695,121.64,173.12,173.03,60.78]
[1747399639888,5.7749,173.1,173.03,60.78]
[1747399640299,5.7749,173.1,173.06,5.7757]
[1747399640902,5.7751,173.09,173.06,5.7757]
[1747399641591,5.7751,173.09,173.05,5.7762]
[1747399641796,121.64,173.12,173.03,60.78]
[1747399642100,121.64,173.12,173.01,1.9628]
[1747399642503,121.64,173.12,173.04,5.7766]
[1747399642900,5.7758,173.07,173.04,5.7766]
[1747399643103,121.64,173.12,173.01,1.9628]
[1747399643401,5.7749,173.1,173.01,1.9628]
[1747399643603,5.7749,173.1,173.06,5.7758]
[1747399643803,121.64,173.12,173.06,5.7758]
[1747399644114,5.7749,173.1,173.02,6.78458879]
[1747399645103,121.64,173.12,173.02,6.78458879]
[1747399645500,60.84,173.12,173.02,6.78458879]
[1747399645800,60.74,173.14,173.05,6.78458879]
[1747399645998,60.74,173.14,173.05,128.34458879]
[1747399646201,5.7741,173.12,173.09,5.7747]
[1747399646803,5.7734,173.14,173.11,5.7741]
[1747399648904,66.5931,173.15,173.12,5.774]
[1747399649299,60.82,173.15,173.06,3.9826]
[1747399649605,5.7736,173.14,173.06,3.9826]
[1747399649906,60.82,173.15,173.08,6.78458879]
[1747399650199,60.82,173.18,173.09,60.82]
[1747399650407,121.52,173.18,173.11,6.78458879]
[1747399650603,121.52,173.18,173.15,5.7728]
[1747399651206,121.52,173.18,173.11,6.78458879]
[1747399651608,5.7726,173.17,173.14,5.7731]
[1747399653409,5.7726,173.17,173.15,5.7729]
[1747399653706,66.5921,173.18,173.15,5.7729]
[1747399653911,60.82,173.18,173.15,5.7729]
[1747399655210,66.5921,173.18,173.15,5.7729]
[1747399655410,212.5816523,173.2,173.11,6.78458879]
[1747399655613,60.68,173.21,173.13,6.78458879]
[1747399655911,66.4512,173.21,173.13,128.14458879]
[1747399656103,60.68,173.21,173.17,5.772]
[1747399656300,60.68,173.21,173.13,128.14458879]
[1747399656510,5.7714,173.2,173.13,128.14458879]
[1747399656710,60.68,173.21,173.13,128.14458879]
[1747399657101,5.7717,173.19,173.13,128.14458879]
[1747399657304,5.7717,173.19,173.16,5.7724]
[1747399657912,5.7717,173.19,173.17,5.7722]
[1747399658103,5.7717,173.19,173.13,128.14458879]
[1747399658512,5.7717,173.19,173.17,5.7723]
[1747399659115,60.68,173.21,173.13,60.68]
[1747399659613,60.68,173.21,173.1,6.78458879]
[1747399659817,60.68,173.21,173.09,62.6305]
[1747399660207,60.68,173.21,173.13,5.7736]
[1747399660713,60.68,173.21,173.09,62.6305]
[1747399661016,5.773,173.15,173.12,5.7738]
[1747399662317,5.7728,173.16,173.13,5.7735]
[1747399663019,5.7731,173.15,173.13,5.7735]
[1747399664113,5.7726,173.17,173.14,5.7732]
[1747399664419,60.62,173.19,173.1,8.22824157]
[1747399664616,5.7721,173.18,173.15,5.773]
[1747399666016,60.62,173.19,173.13,1.44360068]
[1747399666216,60.62,173.19,173.11,1.44360068]
[1747399666418,6.78458879,173.18,173.1,1.4437605]
[1747399666613,5.774,173.12,173.09,5.7747]
[1747399667317,5.7738,173.13,173.1,5.7746]
[1747399669618,60.62,173.14,173.06,64.6626]
[1747399669924,60.62,173.14,173.07,1.44397353]
[1747399670221,60.62,173.14,173.08,1.44397353]
[1747399670414,5.7743,173.12,173.08,5.7751]
[1747399670619,5.7743,173.12,173.09,1.44400342]
[1747399670824,5.7743,173.12,173.09,5.775]
[1747399671322,5.7737,173.13,173.1,7.21837468]
[1747399671524,5.7737,173.13,173.1,5.7744]
[1747399672127,60.62,173.14,173.09,5.7749]
[1747399672428,60.62,173.14,173.06,62.6699]
[1747399672627,5.7742,173.12,173.09,5.7748]
[1747399672822,60.62,173.14,173.06,62.6699]
[1747399673126,60.68,173.13,173.07,1.44415271]
[1747399673329,60.68,173.13,173.02,62.6317]
[1747399673629,60.68,173.13,173.03,1.44427219]
[1747399673831,60.68,173.13,173.04,1.44427219]
[1747399674024,60.68,173.13,173.05,1.44427219]
[1747399674218,60.68,173.13,173.06,7.22007219]
[1747399674523,60.68,173.13,173.07,1.44427219]
[1747399674722,60.68,173.13,173.06,5.7758]
[1747399674918,60.68,173.13,173.07,1.44425415]
[1747399675123,60.68,173.13,173.06,5.7758]
[1747399675426,5.7752,173.09,173.07,1.44425415]
[1747399675627,5.7752,173.09,173.06,5.7758]
[1747399675831,5.7752,173.09,173.07,1.44425415]
[1747399676034,5.7752,173.09,173.06,5.7758]
[1747399676226,5.7752,173.09,173.07,1.44427525]
[1747399676428,5.7752,173.09,173.06,5.7758]
[1747399676630,5.7752,173.09,173.07,1.44426822]
[1747399676832,5.7752,173.09,173.06,5.7758]
[1747399677131,5.7752,173.09,173.07,1.44426791]
[1747399677329,60.68,173.13,173.02,60.68]
[1747399677527,121.26,173.13,173.04,6.78458879]
[1747399677823,60.68,173.13,173.12,5.774]
[1747399678032,60.68,173.13,173.06,62.12429254]
[1747399678240,60.58,173.15,173.07,1.44429254]
[1747399678531,5.7734,173.14,173.11,5.7741]
[1747399679029,60.58,173.15,173.06,60.68]
[1747399679231,5.7738,173.13,173.1,5.7745]
[1747399679533,60.58,173.15,173.06,60.68]
[1747399679732,60.58,173.15,173.07,1.44407753]
[1747399679926,5.7735,173.14,173.11,5.7743]
[1747399681434,66.3332,173.15,173.12,5.774]
[1747399681828,60.68,173.16,173.07,8.61668879]
[1747399682026,60.68,173.16,173.08,1.44399253]
[1747399682231,60.68,173.16,173.09,1.44399253]
[1747399682435,66.4528,173.16,173.1,1.44399253]
[1747399682733,60.56,173.19,173.11,1.44399253]
[1747399682922,121.12,173.19,173.16,5.7726]
[1747399683239,121.12,173.19,173.1,67.34458879]
[1747399683430,5.7723,173.18,173.11,1.44365053]
[1747399683629,5.7723,173.18,173.12,1.44365053]
[1747399683826,5.7723,173.18,173.15,5.7728]
[1747399684023,5.7724,173.17,173.1,67.34458879]
[1747399684227,121.12,173.19,173.11,1.44361456]
[1747399684527,60.56,173.19,173.12,1.44361456]
[1747399684731,60.56,173.19,173.13,1.44361456]
[1747399684933,60.56,173.19,173.14,1.44361456]
[1747399685232,5.7724,173.17,173.15,1.44361456]
[1747399685432,5.7724,173.17,173.14,5.7731]
[1747399685636,5.7724,173.17,173.15,1.44356215]
[1747399685828,5.7724,173.17,173.14,5.7731]
[1747399686134,60.56,173.19,173.15,1.44358323]
[1747399686334,60.56,173.19,173.16,1.44354107]
[1747399686533,60.56,173.19,173.1,67.34458879]
[1747399686830,60.56,173.19,173.11,1.44344944]
[1747399687029,135.8263345,173.21,173.13,6.78458879]
[1747399687229,135.8263345,173.21,173.14,1.44344944]
[1747399687421,135.8263345,173.21,173.16,5.7725]
[1747399687622,135.8263345,173.21,173.17,1.44342188]
[1747399687834,135.8263345,173.21,173.16,5.7725]
[1747399688033,5.7719,173.19,173.17,1.44342037]
[1747399688234,5.7719,173.19,173.16,5.7725]
[1747399688535,5.7719,173.19,173.17,1.44342037]
[1747399688735,5.7719,173.19,173.16,5.7725]
[1747399689535,5.7715,173.2,173.17,5.7723]
[1747399690031,60.54,173.22,173.13,67.32458879]
[1747399690235,121.06,173.25,173.16,6.78458879]
[1747399690435,505.76458879,173.31,173.17,1.44351857]
[1747399690633,121.06,173.27,173.18,1.44351857]
[1747399690824,5.7703,173.24,173.19,1.44351857]
[1747399691025,5.7703,173.24,173.2,1.44351857]
[1747399691230,5.7707,173.22,173.15,8.60858879]
[1747399691436,60.52,173.25,173.16,1.44326356]
[1747399691639,60.52,173.25,173.17,1.44326356]
[1747399691938,67.30458879,173.25,173.1,121.04]
[1747399692136,67.30458879,173.25,173.11,1.44355069]
[1747399692337,67.30458879,173.25,173.12,1.44355069]
[1747399692540,67.30458879,173.25,173.13,1.44355069]
[1747399692840,5.7708,173.22,173.18,5.7718]
[1747399693139,121.04,173.21,173.18,5.7718]
[1747399693436,60.5,173.21,173.12,6.78458879]
[1747399693639,60.5,173.21,173.13,1.44348506]
[1747399693837,60.5,173.21,173.14,61.98348506]
[1747399694035,60.5,173.21,173.15,1.44348506]
[1747399694241,5.7715,173.2,173.17,5.7721]
[1747399694738,5.7721,173.18,172.98,6.78458879]
[1747399694939,60.5,173.21,173.1,122.4835164]
[1747399695131,60.5,173.21,173.11,1.4435164]
[1747399695331,60.5,173.21,173.12,1.4435164]
[1747399695532,60.5,173.21,173.13,1.4435164]
[1747399695840,60.5,173.21,173.14,1.4435164]
[1747399696031,5.7726,173.17,173.15,1.4435164]
[1747399696234,60.54,173.18,173.1,60.54]
[1747399696528,60.54,173.18,173.11,1.44360825]
[1747399696733,60.54,173.18,173.12,1.44360825]
[1747399696929,60.54,173.18,173.13,1.44356138]
[1747399697137,60.54,173.18,173.14,1.44356138]
[1747399697334,60.54,173.18,173.15,1.44356138]
[1747399697534,60.48,173.17,173.09,3.6533]
[1747399697735,60.48,173.17,173.1,1.44370454]
[1747399697934,60.48,173.17,173.11,1.44370454]
[1747399698137,60.48,173.17,173.12,1.44370454]
[1747399698432,60.48,173.17,173.13,1.44370454]
[1747399698633,60.48,173.17,173.14,1.44370454]
[1747399698837,60.48,173.17,173.15,1.44360556]
[1747399699139,60.48,173.17,173.09,3.6533]
[1747399699346,60.48,173.17,173.1,1.44362664]
[1747399699641,66.2524,173.17,173.14,5.7733]
[1747399700345,60.54,173.18,173.09,3.6533]
[1747399700545,60.54,173.18,173.1,1.44365537]
[1747399700746,60.54,173.18,173.11,1.44358715]
[1747399701050,60.54,173.18,173.12,1.44358715]
[1747399701346,66.3122,173.18,173.15,5.7729]
[1747399703150,60.54,173.18,173.16,5.7726]
[1747399703345,60.54,173.18,173.09,10.43788879]
[1747399703645,5.773,173.16,173.12,5.7737]
[1747399703839,5.773,173.16,173.13,1.4436536]
[1747399704047,5.773,173.16,173.14,1.4436536]
[1747399704242,5.773,173.15,173.09,10.43788879]
[1747399704443,60.54,173.18,173.1,1.44368348]
[1747399704643,60.54,173.18,173.11,1.44365537]
[1747399704842,5.7729,173.16,173.13,5.7735]
[1747399705042,5.7729,173.16,173.14,1.44365537]
[1747399705338,5.7729,173.16,173.13,5.7735]
[1747399705541,5.7729,173.16,173.14,1.44368348]
[1747399705748,5.7729,173.16,173.15,1.443593]
[1747399706047,5.7729,173.16,173.13,5.7735]
[1747399706345,5.7729,173.16,173.14,1.44363517]
[1747399706546,60.54,173.18,173.09,10.43788879]
[1747399706742,60.54,173.18,173.1,1.44363458]
[1747399706943,5.7724,173.17,173.14,5.7732]
[1747399707148,5.7724,173.17,173.15,1.44363458]
[1747399707359,5.7724,173.17,173.14,5.7732]
[1747399709142,60.54,173.18,173.15,5.7728]
[1747399709447,60.54,173.18,173.09,10.43788879]
[1747399709646,60.54,173.18,173.1,1.44366675]
[1747399709848,5.7724,173.17,173.14,5.7731]
[1747399710353,66.3121,173.18,173.15,5.7728]
[1747399710649,60.54,173.22,173.16,1.44356292]
[1747399710845,120.98,173.22,173.12,127.76458879]
[1747399711046,5.7711,173.21,173.13,1.44351806]
[1747399711350,5.7711,173.21,173.14,1.44351806]
[1747399711551,5.7714,173.2,173.18,5.7718]
[1747399712050,5.7711,173.21,173.18,5.7718]
[1747399712639,5.7714,173.2,173.17,5.7723]
[1747399712843,120.98,173.22,173.12,127.76458879]
[1747399713048,120.98,173.22,173.13,1.44345956]
[1747399713247,5.7716,173.2,173.16,5.7724]
[1747399713447,120.98,173.22,173.17,1.44345956]
[1747399713652,120.98,173.22,173.16,5.7724]
[1747399714154,5.7716,173.2,173.17,5.7723]
[1747399715854,126.731,173.22,173.12,120.98]
[1747399716042,120.96,173.22,173.12,120.98]
[1747399716246,120.96,173.22,173.13,1.44327139]
[1747399716459,5.7712,173.21,173.18,5.7718]
[1747399717267,120.96,173.22,173.16,5.7725]
[1747399717460,120.96,173.22,173.17,1.4434589]